Workbook

Sheet 01.04.2022
D1: Приложение № 2
D2: к постановлению администрации ЗАТО г. Радужный Владимирской области
D3: от 19.04.2022 № 500
A5: Сведения о фактической численности работников органов местного самоуправления, муниципальных казенных и бюджетных учреждений и расходах на их денежное содержание по состоянию на 01.04.2022
A7: №п/п | B7: Код раздела (подраздела) | C7: Наименование раздела (подраздела) расходов | D7: Фактическая численность на 01.04.2022 года (чел.) | E7: Годовой фонд оплаты труда с начислениями (тыс. руб.) | F7: Исполнено за отчетный период (тыс. руб.)
A8: 1 | B8: 2 | C8: 3 | D8: 4 | E8: 5 | F8: 6
A9: 1 | B9: 0100 | C9: ОБЩЕГОСУДАРСТВЕННЫЕ ВОПРОСЫ | D9: =D11+D12+D13+D14+D15 -> 195 | E9: =E11+E12+E13+E14+E15 -> 72926.51 | F9: =F11+F12+F13+F14+F15 -> 12910.87
C10: в том числе:
A11: 1.1 | B11: 0102 | C11: Функционирование высшего должностного лица субъекта Российской Федерации и муниципального образования | D11: 1 | E11: 1963.16 | F11: 360.21
A12: 1.2 | B12: 0103 | C12: Функционирование законодательных (представительных) органов государственной власти и представительных органов муниципальных образований | D12: 2 | E12: 2041.57 | F12: 353.81
A13: 1.3 | B13: 0104 | C13: Функционирование Правительства Российской Федерации, высших исполнительных органов государственной власти субъектов Российской Федерации, местных администраций | D13: 15 | E13: 8593.66 | F13: 1466.66
A14: 1.4 | B14: 0106 | C14: Обеспечение деятельности финансовых, налоговых и таможенных органов и органов финансового (финансово-бюджетного) надзора | D14: 11 | E14: 5420.69 | F14: 1058.83
A15: 1.5 | B15: 0113 | C15: Другие общегосударственные вопросы | D15: =15+14+137 -> 166 | E15: 54907.43 | F15: 9671.36
A16: 2 | B16: 0300 | C16: НАЦИОНАЛЬНАЯ БЕЗОПАСНОСТЬ И ПРАВООХРАНИТЕЛЬНАЯ ДЕЯТЕЛЬНОСТЬ | D16: =D18+D19 -> 5 | E16: =E18+E19 -> 2961.37 | F16: =F18+F19 -> 505.6
C17: в том числе:
A18: 2.1 | B18: 0304 | C18: Органы юстиции | D18: 1 | E18: 368.7 | F18: 80.27
A19: 2.2 | B19: 0309 | C19: Гражданская оборона | D19: 4 | E19: 2592.67 | F19: 425.33
A20: 3 | B20: 0400 | C20: НАЦИОНАЛЬНАЯ ЭКОНОМИКА | D20: =D22 -> 37 | E20: =E22 -> 17387.07 | F20: =F22 -> 3102.8
C21: в том числе:
A22: 3.1 | B22: 0409 | C22: Дорожное хозяйство (дорожные фонды) | D22: 37 | E22: =17067.94+319.13 -> 17387.07 | F22: 3102.8
A23: 4 | B23: 0500 | C23: ЖИЛИЩНО-КОММУНАЛЬНОЕ ХОЗЯЙСТВО | D23: =D25+D26 -> 60 | E23: =E25+E26 -> 25499.4 | F23: =F25+F26 -> 4821.07
C24: в том числе:
A25: 4.1 | B25: 0503 | C25: Благоустройство | D25: 5 | E25: 2253.94 | F25: 375.15
A26: 4.2 | B26: 0505 | C26: Другие вопросы в области жилищно-коммунального хозяйства | D26: =1+54 -> 55 | E26: 23245.46 | F26: 4445.92
A27: 5 | B27: 0700 | C27: ОБРАЗОВАНИЕ | D27: =D29+D30+D31+D32 -> 540 | E27: =E29+E30+E31+E32 -> 250070.25 | F27: =F29+F30+F31+F32 -> 42197.24
C28: в том числе:
A29: 5.1 | B29: 0701 | C29: Дошкольное образование | D29: 217 | E29: 96167.59 | F29: 15067.46
A30: 5.2 | B30: 0702 | C30: Общее образование | D30: 195 | E30: 104455.11 | F30: 18492.98
A31: 5.3 | B31: 0703 | C31: Дополнительное образование детей | D31: =57+45 -> 102 | E31: =19957.53+18257.92+378.2 -> 38593.65 | F31: =3648.06+2997.56 -> 6645.62
A32: 5.4 | B32: 0709 | C32: Другие вопросы в области образования | D32: 26 | E32: 10853.9 | F32: 1991.18
A33: 6 | B33: 0800 | C33: КУЛЬТУРА, КИНЕМАТОГРАФИЯ | D33: =D35+D36 -> 95 | E33: =E35+E36 -> 36747.4 | F33: =F35+F36 -> 6640.44
C34: в том числе:
A35: 6.1 | B35: 0801 | C35: Культура | D35: 54 | E35: 23475.77 | F35: 4182.48
A36: 6.2 | B36: 0804 | C36: Другие вопросы в области культуры, кинематографии | D36: 41 | E36: 13271.63 | F36: 2457.96
A37: 7 | B37: 1000 | C37: СОЦИАЛЬНАЯ ПОЛИТИКА | D37: =D39 -> 2 | E37: =E39 -> 1139.85 | F37: =F39 -> 182.6
C38: в том числе:
A39: 7.1 | B39: 1006 | C39: Другие вопросы в области социальной политики | D39: 2 | E39: 1139.85 | F39: 182.6
A40: 8 | B40: 1100 | C40: ФИЗИЧЕСКАЯ КУЛЬТУРА И СПОРТ | D40: =D42 -> 3 | E40: =E42 -> 1258.55 | F40: =F42 -> 182.12
C41: в том числе:
A42: 8.1 | B42: 1103 | C42: Спорт высших достижений | D42: 3 | E42: 1258.55 | F42: 182.12
C43: Всего: | D43: =D9+D16+D20+D23+D27+D33+D37+D40 -> 937 | E43: =E9+E16+E20+E23+E27+E33+E37+E40 -> 407990.4 | F43: =F9+F16+F20+F23+F27+F33+F37+F40 -> 70542.74
A46: Заместитель главы администрации города по финансам и экономике, начальник финансового управления | E46: О.М. Горшкова
A49: В.Н. Милованова, 3-67-17
